fUSD/lending_fUSD_20240921
["ID","MTS","AMOUNT","RATE_DAILY","PERIOD"]
[338856653,1726946533469,485.82,0.00011899,2]
[338856654,1726946547488,1050.0,0.00011,2]
[338856655,1726946609352,7939.05,0.000119,2]
[338856656,1726946615963,250.0,0.000119,2]
[338856657,1726946626558,250.0,0.00011908,2]
[338856664,1726946692091,155.32,0.00011912,2]
[338856667,1726946752705,2000.0,0.00011912,2]
[338856669,1726946804524,172.67,0.00011893,2]
[338856674,1726946847254,8829.22,0.00011912,2]
[338856675,1726946893807,250.0,0.00011912,2]
[338856677,1726946908504,-268.28,0.00012045,2]
[338856678,1726946908527,-959.23,0.00012293,2]
[338856679,1726946908551,-167.0,0.00012445,2]
[338856680,1726946908575,-167.0,0.00012445,2]
[338856681,1726946908598,-243.10509471,0.00012653,2]
[338856682,1726946908620,-499.99,0.00012733,2]
[338856683,1726946908642,-150.43,0.00012733,2]
[338856684,1726946908665,-1922.0,0.00012738,2]
[338856685,1726946908687,-5348.55,0.0001276,2]
[338856686,1726946908711,-150.0,0.00012766,2]
[338856687,1726946908736,-150.0,0.00012775,2]
[338856688,1726946908759,-150.0,0.0001278,2]
[338856689,1726946908782,-900.58,0.0001278,2]
[338856690,1726946908806,-1536.96,0.0001278,2]
[338856691,1726946908828,-2500.0,0.00012799,2]
[338856692,1726946908852,-23790.87490529,0.00012799,2]
[338856693,1726946912935,-4953.70599471,0.00012799,2]
[338856694,1726946912957,-150.0,0.00012799,2]
[338856695,1726946912978,-12715.83594865,0.000128,2]
[338856696,1726946913002,-150.0,0.000128,2]
[338856697,1726946913024,-184.18222609,0.000128,2]
[338856698,1726946913047,-15342.77003362,0.000128,2]
[338856699,1726946913068,-1000.0,0.000128,2]
[338856700,1726946913092,-150.0,0.00012819,2]
[338856701,1726946913116,-150.0,0.00012829,2]
[338856702,1726946913138,-766.37964515,0.0001284,2]
[338856703,1726946913163,-150.0,0.00012856,2]
[338856704,1726946913185,-500.0,0.00012896,2]
[338856705,1726946913207,-1500.0,0.00012897,2]
[338856706,1726946913229,-2287.12615178,0.00012898,2]
[338856707,1726946913502,-13764.31686356,0.00012898,2]
[338856708,1726946913525,-26235.68313644,0.00012899,2]
[338856709,1726946914245,-40000.0,0.00012899,2]
[338856710,1726946914926,-40000.0,0.00012899,2]
[338856712,1726946941167,159.18,0.00010959,2]
[338856721,1726946959090,-23880.0,0.00012275,2]
[338856722,1726946959311,-150.0,0.00012753,2]
[338856723,1726946959338,-155.17,0.00012762,2]
[338856724,1726946959361,-150.0,0.00012768,2]
[338856725,1726946959387,-150.0,0.00012796,2]
[338856726,1726946959409,-9383.1375,0.00012799,2]
[338856727,1726946959432,-1724.7934,0.00012799,2]
[338856728,1726946959454,-354.29980773,0.0001289,2]
[338856729,1726946959477,-4052.59929227,0.00012899,2]
[338856730,1726946959676,-40000.0,0.00012899,2]
[338856731,1726946968758,-12523.3107,0.00012799,2]
[338856732,1726946968781,-9667.6802,0.00012799,2]
[338856733,1726946968804,-150.0,0.0001287,2]
[338856734,1726946968827,-7543.08637129,0.00012899,2]
[338856735,1726946982150,200.0,0.00012208,2]
[338856736,1726946983513,850.9456,0.00012799,2]
[338856738,1726947001802,150.0,0.00012899,2]
[338856739,1726947001839,300.0,0.00012899,2]
[338856740,1726947004925,163.37,0.0001289,2]
[338856759,1726947032551,-165.536,0.000129,2]
[338856760,1726947032561,-444.315,0.000129,2]
[338856761,1726947032572,-26.554,0.000129,2]
[338856762,1726947032583,-130.97190792,0.000129,2]
[338856763,1726947032593,-7500.0,0.000129,2]
[338856764,1726947032602,-1000.0,0.000129,2]
[338856765,1726947032616,-1000.0,0.00012935,2]
[338856766,1726947032625,-1000.0,0.00012935,2]
[338856767,1726947032636,-1000.0,0.00012935,2]
[338856768,1726947032645,-1000.0,0.00012935,2]
[338856769,1726947032657,-1000.0,0.00012935,2]
[338856770,1726947032666,-1000.0,0.00012935,2]
[338856771,1726947032676,-1000.0,0.00012935,2]
[338856772,1726947032686,-1000.0,0.00012935,2]
[338856773,1726947032696,-1000.0,0.00012935,2]
[338856774,1726947032705,-568.2401,0.00012935,2]
[338856776,1726947032714,-500.0,0.00012935,2]
[338856778,1726947032724,-500.0,0.00012935,2]
[338856780,1726947032733,-500.0,0.00012935,2]
[338856782,1726947032742,-500.0,0.00012935,2]
[338856784,1726947032751,-500.0,0.00012935,2]
[338856786,1726947032760,-500.0,0.00012935,2]
[338856788,1726947032769,-500.0,0.00012935,2]
[338856790,1726947032780,-500.0,0.00012935,2]
[338856792,1726947032789,-500.0,0.00012935,2]
[338856794,1726947032799,-500.0,0.00012935,2]
[338856796,1726947032808,-500.0,0.00012935,2]
[338856798,1726947032817,-500.0,0.00012935,2]
[338856800,1726947032826,-500.0,0.00012935,2]
[338856801,1726947032835,-500.0,0.00012935,2]
[338856802,1726947032844,-500.0,0.00012935,2]
[338856803,1726947032853,-161.644,0.00012935,2]
[338856804,1726947032862,-150.0,0.00012939,2]
[338856805,1726947032871,-150.0,0.00012942,2]
[338856806,1726947032880,-150.0,0.00012945,2]
[338856807,1726947032890,-150.0,0.00012947,2]
[338856808,1726947032898,-150.0,0.00012962,2]
[338856809,1726947032907,-151.97,0.0001297,2]
[338856810,1726947032916,-158.31767819,0.0001297,2]
[338856811,1726947032925,-200.0,0.00012973,2]
[338856812,1726947032934,-500.0,0.00012973,2]
[338856813,1726947032944,-500.0,0.00012973,2]
[338856814,1726947032953,-451.85628862,0.00012979,2]
[338856815,1726947032962,-500.0,0.00012979,2]
[338856816,1726947032971,-371.17087056,0.00012979,2]
[338856817,1726947032980,-500.0,0.00012979,2]
[338856818,1726947032990,-500.0,0.00012979,2]
[338856819,1726947032999,-500.0,0.00012979,2]
[338856820,1726947033009,-500.0,0.00012979,2]
[338856821,1726947033018,-500.0,0.00012979,2]
[338856822,1726947033027,-341.47763238,0.00012979,2]
[338856823,1726947033037,-137933.93008684,0.0001298,2]
[338856824,1726947033049,-82982.30087,0.0001298,2]
[338856825,1726947033065,-456727.02723203,0.0001298,2]
[338856826,1726947033537,-13427.91046316,0.0001298,2]
[338856827,1726947034132,168.22875623,0.0001288,2]
[338856828,1726947038512,-999.99999999,0.00012979,3]
[338856829,1726947038522,-6214.73959699,0.0001298,2]
[338856830,1726947038533,-830.76722118,0.0001298,2]
[338856832,1726947038544,-60352.48900671,0.0001298,2]
[338856833,1726947038555,-18943.76812934,0.0001298,2]
[338856834,1726947038566,-8208.53520196,0.0001298,2]
[338856835,1726947038577,-509.16789362,0.0001298,2]
[338856836,1726947038588,-1080.68345125,0.0001298,2]
[338856837,1726947038678,-1019.83248483,0.0001298,2]
[338856838,1726947038689,-618.74932003,0.0001298,2]
[338856839,1726947038792,-640295.30338968,0.0001298,2]
[338856840,1726947038803,-13232.15369915,0.0001298,2]
[338856841,1726947038813,-393.01182328,0.0001298,2]
[338856842,1726947038823,-11628.14624387,0.0001298,2]
[338856843,1726947038835,-312.22017178,0.0001298,2]
[338856844,1726947038846,-1035.7815816,0.0001298,2]
[338856845,1726947038857,-1959.02575318,0.0001298,2]
[338856846,1726947038868,-7969.17193469,0.0001298,2]
[338856847,1726947038880,-4235.85334958,0.0001298,2]
[338856980,1726947040342,-602.7973578,0.0001298,2]
[338856982,1726947040355,-476.45777715,0.0001298,2]
[338856988,1726947040401,-282.4767247,0.0001298,2]
[338856990,1726947040412,-5142.19115269,0.0001298,2]
[338856992,1726947040423,-889.49999995,0.0001298,2]
[338856995,1726947040434,-998.56,0.0001298,2]
[338856997,1726947040445,-400.075,0.0001298,2]
[338857010,1726947040563,-475127.56990678,0.0001298,2]
[338857013,1726947040574,-20776.22156443,0.0001298,2]
[338857015,1726947040585,-129944.91072801,0.0001298,2]
[338857017,1726947040595,-1986.34492326,0.0001298,2]
[338857019,1726947040608,-386.58466476,0.0001298,2]
[338857020,1726947040621,-1324.73356299,0.0001298,2]
[338857021,1726947040633,-1663.5002,0.0001298,2]
[338857022,1726947040644,-2266.00000008,0.0001298,2]
[338857023,1726947040655,-13471.89695095,0.0001298,2]
[338857024,1726947040666,-6896.22910835,0.0001298,2]
[338857025,1726947040677,-701.66503495,0.0001298,2]
[338857026,1726947040688,-1787.55805162,0.0001298,2]
[338857027,1726947040700,-33598.95918226,0.0001298,2]
[338857028,1726947040711,-31365.19920452,0.0001298,2]
[338857029,1726947040720,-3764.54,0.0001298,2]
[338857030,1726947040730,-3591.68146003,0.00012996,2]
[338857031,1726947040741,-478.75263346,0.00012996,2]
[338857032,1726947040751,-6819.17745626,0.00012996,2]
[338857033,1726947040764,-2303.5,0.00012996,2]
[338857034,1726947040775,-2536.04738605,0.00012996,2]
[338857035,1726947040784,-456.47493226,0.00012996,2]
[338857036,1726947040801,-266.9172877,0.00012996,2]
[338857037,1726947040810,-223.2502039,0.00012996,2]
[338857038,1726947040820,-440.2815668,0.00012999,2]
[338857040,1726947040829,-79425.23261253,0.00013,2]
[338857043,1726947040843,-296.03666,0.00013,2]
[338857045,1726947040854,-351.91594489,0.00013,2]
[338857047,1726947040865,-621.51461131,0.00013,2]
[338857049,1726947040876,-660.549,0.00013,2]
[338857051,1726947040887,-844.59940541,0.00013,2]
[338857054,1726947040898,-304.33735203,0.00013,2]
[338857056,1726947040909,-572.19529931,0.00013,2]
[338857311,1726947043514,-1432.97748967,0.00013,2]
[338857314,1726947043545,-1612.32159237,0.00013,2]
[338857316,1726947043556,-369.04840763,0.00013,2]
[338857327,1726947043655,-579186.72231278,0.00013,2]
[338857328,1726947043665,-1185447.26854055,0.00013,2]
[338857330,1726947043675,-386562.65038874,0.00013,2]
[338857333,1726947043688,-575110.0,0.00013,2]
[338857335,1726947043700,-134670.0,0.00013,2]
[338857337,1726947043711,-500.57827625,0.00013,2]
[338857339,1726947043723,-1202.82442801,0.00013,2]
[338857588,1726947046344,-1658.01635428,0.00013,2]
[338857591,1726947046355,-2008.43148739,0.00013,2]
[338857612,1726947046453,-14560.61554981,0.00013,2]
[338857616,1726947046464,-42639.74057242,0.00013,2]
[338858962,1726947084442,12162.37837248,0.0001288,2]
[338858963,1726947086697,-14545.95382752,0.0001288,2]
[338858964,1726947086722,-354.29980772,0.000129,2]
[338858965,1726947086747,-500.0,0.00012979,2]
[338858966,1726947086769,-500.0,0.00012979,2]
[338858967,1726947086792,-646.7836475,0.00012979,2]
[338858968,1726947086815,-500.0,0.00012979,2]
[338858969,1726947086841,-500.0,0.00012979,2]
[338858970,1726947086864,-500.0,0.00012979,2]
[338858971,1726947086888,-500.0,0.00012979,2]
[338858972,1726947086911,-423.90537844,0.00012979,2]
[338858973,1726947086933,-220.1407834,0.00012999,2]
[338858974,1726947086956,-20640.91655542,0.00013,2]
[338858976,1726947105669,-7500.0,0.0001288,2]
[338858977,1726947105718,-20328.0,0.00013,2]
[338858979,1726947135701,500.0,0.00011164,2]
[338858980,1726947169382,500.0,0.00011164,2]
[338858981,1726947188121,976.02,0.00010431,2]
[338858984,1726947260097,500.0,0.00011164,2]
[338858987,1726947405632,212.09,0.00012015,2]
[338858989,1726947423408,2601.66,0.00012015,2]
[338858992,1726947512711,1417.07752807,0.00011978,2]
[338858994,1726947538178,840.0,0.00012026,2]
[338858995,1726947541096,2329.58,0.00012026,2]
[338858996,1726947548452,150.0,0.00012009,2]
[338858997,1726947583985,3038.75,0.00012009,2]
[338858998,1726947711461,927.21,0.0001005,2]
[338858999,1726947718873,250.0,0.00011941,2]
[338859000,1726947739594,1567.6,0.00011959,2]
[338859004,1726947809890,242.91,0.00011973,2]
[338859005,1726947820702,250.0,0.00011998,2]
[338859006,1726947830791,155.25,0.00012022,2]
[338859009,1726947969216,23900.0,0.00012008,2]
[338859010,1726947981147,250.0,0.00012008,2]
[338859012,1726948063793,300.0,0.00011558,2]
[338859013,1726948064278,2000.0,0.00011558,2]
[338859014,1726948065040,578.82,0.00011558,2]
[338859015,1726948077026,328.0,0.00011566,2]
[338859020,1726948103104,150.0,0.00011566,2]
[338859023,1726948186976,180.76,0.00011562,2]
[338859024,1726948216804,701.42344,0.00012,2]
[338859029,1726948231465,-184.31,0.00012046,2]
[338859030,1726948231474,-255.4928466,0.00012056,2]
[338859031,1726948231574,-60.6071534,0.00012056,2]
[338859032,1726948231583,-1000.36,0.00012056,2]
[338859033,1726948231593,-213.89,0.00012103,2]
[338859034,1726948231605,-213.89,0.00012106,2]
[338859035,1726948231616,-213.89,0.00012109,2]
[338859036,1726948231627,-213.89,0.00012112,2]
[338859037,1726948231638,-213.89,0.00012115,2]
[338859038,1726948231648,-213.89,0.00012119,2]
[338859039,1726948231658,-213.89,0.00012122,2]
[338859040,1726948231667,-213.89,0.00012125,2]
[338859041,1726948231853,-213.89,0.00012128,2]
[338859042,1726948231863,-213.89,0.00012131,2]
[338859043,1726948231873,-213.89,0.00012135,2]
[338859044,1726948231883,-213.89,0.00012138,2]
[338859045,1726948231892,-213.89,0.00012141,2]
[338859046,1726948231901,-213.89,0.00012144,2]
[338859047,1726948231910,-213.89,0.00012147,2]
[338859048,1726948231919,-213.89,0.0001215,2]
[338859050,1726948231929,-956.07,0.00012152,2]
[338859052,1726948231938,-213.89,0.00012154,2]
[338859054,1726948231947,-213.89,0.00012157,2]
[338859056,1726948231956,-213.89,0.0001216,2]
[338859058,1726948231965,-213.89,0.00012163,2]
[338859060,1726948231974,-927.21,0.00012314,2]
[338859062,1726948231984,-171.07,0.00012445,2]
[338859064,1726948231993,-300.0,0.00012445,2]
[338859066,1726948232002,-1000.0,0.000127,2]
[338859068,1726948232011,-150.0,0.000127,2]
[338859069,1726948232020,-150.0,0.00012767,2]
[338859071,1726948232030,-1051.57888398,0.00012785,2]
[338859073,1726948232039,-1612.0,0.000128,2]
[338859075,1726948232049,-150.0,0.00012802,2]
[338859077,1726948232061,-150.0,0.00012815,2]
[338859079,1726948232071,-1500.0,0.00012827,2]
[338859081,1726948232080,-1500.0,0.00012849,2]
[338859082,1726948232089,-500.0,0.00012896,2]
[338859083,1726948232099,-200.0,0.00012896,2]
[338859084,1726948232108,-235.61450612,0.00012897,2]
[338859085,1726948232117,-166.749,0.00012899,2]
[338859086,1726948232125,-517.562,0.00012899,2]
[338859087,1726948232140,-1898.0463,0.000129,2]
[338859088,1726948232149,-157.52590792,0.000129,2]
[338859089,1726948232159,-5705.2097,0.000129,2]
[338859090,1726948232168,-14615.28061745,0.000129,2]
[338859091,1726948232177,-165.10079912,0.000129,2]
[338859092,1726948232187,-342.73,0.00012986,2]
[338859093,1726948232197,-722.52382964,0.00012989,2]
[338859094,1726948232207,-158.31767819,0.0001299,2]
[338859095,1726948232216,-151.97,0.0001299,2]
[338859096,1726948232226,-2047.9889279,0.00012994,2]
[338859097,1726948232236,-14891.9378658,0.00012996,2]
[338859098,1726948232245,-316.29940204,0.00012999,2]
[338859099,1726948232254,-255.00847211,0.00012999,2]
[338859100,1726948232264,-500.0,0.00012999,2]
[338859101,1726948232273,-220.14078339,0.00012999,2]
[338859102,1726948232282,-8052.3476287,0.00013,2]
[338859103,1726948232294,-14222.59391753,0.00013,2]
[338859104,1726948232308,-200834.61484727,0.00013,2]
[338859105,1726948232319,-1250.0,0.00013,2]
[338859106,1726948232330,-31333.04975377,0.00013,2]
[338859107,1726948232340,-814910.54675674,0.00013,2]
[338859108,1726948232354,-52594.15252274,0.00013,2]
[338859109,1726948232379,-1783.20741457,0.00013,2]
[338859113,1726948237636,-752.92921906,0.00012994,2]
[338859114,1726948237901,-5254.58296364,0.00012994,2]
[338859115,1726948237912,-5166.21926122,0.00013,2]
[338859116,1726948237925,-7768.1384,0.00013,2]
[338859117,1726948237936,-7546.2938,0.00013,2]
[338859118,1726948237948,-17006.65070178,0.00013,2]
[338859119,1726948237960,-4762.98360486,0.00013,2]
[338859120,1726948237971,-527.28958145,0.00013,2]
[338859121,1726948237982,-97890.73463176,0.00013,2]
[338859122,1726948237991,-151.0,0.00013,2]
[338859123,1726948238000,-151.0,0.00013,2]
[338859124,1726948238009,-231.723068,0.00013,2]
[338859125,1726948238018,-151.0,0.00013,2]
[338859126,1726948238027,-151.811761,0.00013,2]
[338859127,1726948238037,-151.0,0.00013,2]
[338859128,1726948238046,-200.0,0.00013,2]
[338859129,1726948238057,-428169.61086019,0.00013,2]
[338859130,1726948238069,-2000.0,0.00013,2]
[338859131,1726948238078,-4226.71395787,0.00013,2]
[338859132,1726948238087,-198.77627813,0.00013,2]
[338859133,1726948238096,-223.79081731,0.00013,2]
[338859134,1726948238106,-1000.0,0.00013,2]
[338859135,1726948238116,-186.0418365,0.00013003,2]
[338859136,1726948238125,-328.0,0.00013012,2]
[338859137,1726948238137,-9986.0,0.00013014,2]
[338859138,1726948238147,-10000.0,0.00013093,2]
[338859139,1726948238156,-14615.28061744,0.00013122,2]
[338859140,1726948238165,-153.91,0.000132,2]
[338859141,1726948238175,-151.0,0.00013253,2]
[338859142,1726948238184,-14615.28061744,0.00013344,2]
[338859143,1726948238194,-167.0,0.00013346,2]
[338859144,1726948238203,-424.46,0.0001337,2]
[338859145,1726948238212,-172.67,0.00013379,2]
[338859146,1726948238221,-165.10079912,0.000134,2]
[338859147,1726948238230,-150.0,0.00013463,2]
[338859148,1726948238239,-212.09,0.00013517,2]
[338859149,1726948238248,-840.0,0.00013529,2]
[338859150,1726948238257,-261.344,0.00013552,2]
[338859151,1726948238266,-1147.0,0.00013552,2]
[338859152,1726948238275,-13489.0,0.00013552,2]
[338859153,1726948238285,-5378.533,0.00013552,2]
[338859154,1726948238294,-150.0,0.00013552,2]
[338859155,1726948238303,-316.1,0.00013563,2]
[338859156,1726948238312,-14615.28061744,0.00013567,2]
[338859157,1726948238321,-420.0,0.00013655,2]
[338859158,1726948238332,-500.0,0.00013699,2]
[338859159,1726948238342,-2000.0,0.00013699,2]
[338859160,1726948238355,-2000.0,0.00013699,2]
[338859161,1726948238364,-153.29,0.00013699,2]
[338859162,1726948238374,-181.19,0.00013699,2]
[338859163,1726948238384,-14615.28061744,0.00013789,2]
[338859164,1726948238395,-195.0,0.00013805,2]
[338859165,1726948238405,-1000.0,0.000139,3]
[338859166,1726948238415,-1000.0,0.000139,3]
[338859167,1726948238426,-305.86,0.000139,2]
[338859168,1726948238437,-1011.58,0.000139,2]
[338859169,1726948238446,-189279.91735903,0.000139,3]
[338859170,1726948238459,-556.4527113,0.000139,3]
[338859171,1726948238470,-358.48667185,0.000139,3]
[338859172,1726948238480,-352.52727591,0.000139,3]
[338859173,1726948239577,-640.91615652,0.00013093,2]
[338859174,1726948239586,-2394.10384348,0.000139,3]
[338859175,1726948239632,-11953.20000001,0.000139,3]
[338859176,1726948239643,-7827.40409999,0.000139,3]
[338859177,1726948239687,-300.59930483,0.000139,3]
[338859470,1726948242566,-2370.1545186,0.000139,3]
[338859472,1726948242576,-500.0,0.00013904,2]
[338859474,1726948242585,-500.0,0.00013904,2]
[338859476,1726948242594,-152.28,0.00013918,30]
[338859478,1726948242603,-2940.49548137,0.00014011,2]
[338859480,1726948242615,-427.149998,0.00014011,2]
[338859482,1726948242627,-414.73395685,0.00014011,2]
[338859484,1726948242641,-760.21,0.00014011,2]
[338859486,1726948242652,-1700.6,0.00014011,2]
[338859489,1726948242663,-827.19049739,0.00014011,2]
[338859491,1726948242674,-547.46957672,0.00014011,2]
[338859493,1726948242685,-6997.43110711,0.00014011,2]
[338859495,1726948242694,-153.29,0.00014079,2]
[338859497,1726948242703,-186.0418365,0.0001417,2]
[338859499,1726948242712,-2472.6372243,0.0001417,2]
[338859501,1726948242723,-7267.6244942,0.0001417,2]
[338859503,1726948242733,-160.51357757,0.00014173,2]
[338859505,1726948242741,-500.0,0.00014173,2]
[338859507,1726948242751,-2004.65598259,0.00014179,2]
[338859509,1726948242760,-43544.80577772,0.0001418,2]
[338859512,1726948242778,-483.05719049,0.0001418,2]
[338859514,1726948242789,-599.65000005,0.0001418,2]
[338859516,1726948242799,-6341.44435757,0.0001418,2]
[338859518,1726948242810,-715.43335499,0.0001418,2]
[338859520,1726948242821,-1075.19585022,0.0001418,2]
[338859522,1726948242832,-4330.59626476,0.0001418,2]
[338859525,1726948242847,-717.9,0.0001418,2]
[338859776,1726948245507,-354.29980772,0.000129,2]
[338859778,1726948245518,-645.70019228,0.0001418,2]
[338859780,1726948245529,-3171.7,0.0001418,2]
[338859799,1726948245717,-739.3446324,0.0001418,2]
[338860550,1726948273172,500.0,0.00011164,2]
[338860551,1726948285963,500.0,0.00011164,2]
[338860552,1726948310771,936.78,0.00011675,2]
[338860554,1726948312269,500.0,0.00011164,2]
[338860557,1726948326254,339.61,0.00010959,2]
[338860558,1726948350059,1050.0,0.00011,2]
[338860560,1726948382994,500.0,0.00011164,2]
[338860566,1726948549786,500.0,0.00011164,2]
[338860570,1726948637162,500.0,0.00011164,2]
[338860599,1726948853687,190.59,0.00010959,2]
[338860664,1726948957710,940.24,0.00010785,2]
[338861052,1726949431711,-230.482276,0.00012421,2]
[338861053,1726949431721,-250.0,0.00012484,2]
[338861054,1726949431730,-993.70255312,0.00012487,2]
[338861055,1726949431816,-1006.29744688,0.00012487,2]
[338861056,1726949431826,-196.8,0.0001257,2]
[338861057,1726949431835,-694.32,0.00012647,2]
[338861058,1726949431846,-22710.82,0.00012649,2]
[338861059,1726949431855,-597.96,0.00012664,2]
[338861060,1726949431865,-275.16,0.00012671,2]
[338861061,1726949431875,-155.25,0.00012691,2]
[338861062,1726949431885,-250.0,0.00012697,2]
[338861063,1726949431894,-299.99,0.00012697,2]
[338861064,1726949431903,-170.43,0.00012738,2]
[338861065,1726949431913,-155.16,0.0001275,2]
[338861066,1726949431923,-155.16,0.0001276,2]
[338861067,1726949431932,-155.16,0.00012771,2]
[338861068,1726949431942,-155.16,0.00012782,2]
[338861069,1726949431951,-155.16,0.00012792,2]
[338861070,1726949431961,-155.16,0.00012803,2]
[338861071,1726949431971,-250.0,0.00012807,2]
[338861073,1726949431982,-155.16,0.00012813,2]
[338861075,1726949431992,-803.2,0.00012835,2]
[338861077,1726949432002,-167.03,0.00012895,2]
[338861079,1726949432011,-150.0,0.00012899,2]
[338861080,1726949432020,-31114.7605,0.000129,2]
[338861082,1726949432030,-428.99,0.000129,2]
[338861083,1726949432039,-167.558,0.00012922,2]
[338861084,1726949432048,-543.738,0.00012922,2]
[338861085,1726949432058,-940.24,0.00013049,2]
[338861086,1726949432067,-10000.0,0.00013066,2]
[338861087,1726949432077,-169.71,0.00013384,2]
[338861088,1726949432085,-500.0,0.00013481,2]
[338861089,1726949432094,-500.0,0.00013699,2]
[338861090,1726949432103,-2000.0,0.00013699,2]
[338861091,1726949432112,-181.19,0.00013699,2]
[338861092,1726949432122,-153.29,0.00013699,2]
[338861093,1726949432131,-233.2434613,0.00013876,2]
[338861095,1726949432140,-308.72,0.000139,2]
[338861096,1726949432150,-500.0,0.00013904,2]
[338861097,1726949432159,-500.0,0.00013904,2]
[338861098,1726949432168,-500.0,0.00013904,2]
[338861099,1726949432177,-152.28,0.00013918,30]
[338861100,1726949432186,-150.0,0.00013925,2]
[338861101,1726949432195,-150.0,0.00013931,2]
[338861102,1726949432204,-2622.0242,0.0001408,2]
[338861103,1726949432213,-150.0,0.00014083,2]
[338861104,1726949432222,-343.06727369,0.00014124,2]
[338861105,1726949432233,-176.75205611,0.00014124,2]
[338861106,1726949432242,-153.29,0.00014127,2]
[338861107,1726949432251,-196.8,0.00014142,2]
[338861108,1726949432260,-5969.55953225,0.0001415,2]
[338861109,1726949432270,-76406.2459711,0.0001417,3]
[338861110,1726949432279,-151.97,0.0001417,2]
[338861111,1726949432288,-469.67151968,0.00014179,2]
[338861112,1726949432297,-58527.89130306,0.0001418,2]
[338861118,1726949438137,-6241.12500248,0.00013066,2]
[338861245,1726949439688,-1271.8256352,0.00013066,2]
[338861249,1726949439714,-2366.61029721,0.00013066,2]
[338861261,1726949439822,-120.43906511,0.00013066,2]
[338861263,1726949439830,-4548.36207145,0.00013066,2]
[338861265,1726949439839,-195406.05945274,0.0001418,2]
[338861270,1726949439876,-512044.41667623,0.0001418,2]
[338861272,1726949439886,-3638.39266529,0.00014223,3]
[338861274,1726949439896,-5969.55953216,0.00014233,2]
[338861276,1726949439906,-5001.23637,0.0001425,2]
[338861278,1726949439916,-5262.07737008,0.00014282,3]
[338861280,1726949439926,-524.08,0.000143,2]
[338861282,1726949439937,-273.130806,0.00014307,2]
[338861285,1726949439947,-164.222117,0.00014307,2]
[338861287,1726949439957,-3638.39266529,0.00014307,3]
[338861289,1726949439967,-5969.55953216,0.00014317,2]
[338861291,1726949439976,-170.43,0.0001433,2]
[338861292,1726949439985,-176.75205608,0.00014383,2]
[338861294,1726949439996,-3638.39266529,0.0001439,3]
[338861297,1726949440007,-1000.0,0.000144,4]
[338861299,1726949440017,-1000.0,0.000144,4]
[338861301,1726949440026,-5969.55953216,0.000144,2]
[338861303,1726949440036,-3638.39266529,0.00014436,3]
[338861305,1726949440045,-803.2,0.00014439,2]
[338861307,1726949440056,-223.8131964,0.00014439,2]
[338861309,1726949440066,-2897.2855207,0.00014446,2]
[338861311,1726949440076,-8527.7368057,0.00014446,2]
[338861313,1726949440086,-3381.45570057,0.00014483,2]
[338861315,1726949440096,-5969.55953216,0.00014483,2]
[338861317,1726949440106,-3638.39266529,0.0001449,3]
[338861319,1726949440116,-167.0,0.00014499,2]
[338861321,1726949440128,-171.07,0.00014499,2]
[338861324,1726949440140,-1006.0,0.000145,4]
[338861326,1726949440151,-1000.0,0.000145,4]
[338861328,1726949440161,-1000.0,0.000145,4]
[338861330,1726949440172,-150.0,0.000145,2]
[338861332,1726949440182,-3638.39266529,0.0001451,3]
[338861334,1726949440191,-343.06727368,0.00014512,2]
[338861336,1726949440201,-186.0418365,0.00014514,2]
[338861338,1726949440210,-14553.5706612,0.00014514,3]